bitfinex/quotes_SOLUSD_20260304
["timestamp","ask_amount","ask_price","bid_price","bid_amount"]
[1772659045129,2.40701375,92.575,92.527,2.26630047]
[1772659046827,13.20703611,92.574,92.529,2.40673364]
[1772659047034,2.40486704,92.574,92.529,2.40673364]
[1772659047327,2.40486704,92.593,92.532,2.69105678]
[1772659049033,2.40486704,92.591,92.537,2.40673364]
[1772659049609,2.40486704,92.589,92.537,2.40673364]
[1772659050852,104.9,92.589,92.537,2.40673364]
[1772659051020,104.9,92.589,92.533,10.80695535]
[1772659051021,104.9,92.589,92.543,0.28432314]
[1772659051224,104.9,92.589,92.546,2.40673364]
[1772659051741,115.70049774,92.589,92.546,2.40673364]
[1772659052541,10.80049774,92.589,92.546,2.40673364]
[1772659052922,2.40486704,92.588,92.546,2.40673364]
[1772659053446,2.40486704,92.586,92.548,2.40673364]
[1772659054145,2.40486704,92.586,92.547,10.80532053]
[1772659054643,2.40486704,92.586,92.541,10.80602111]
[1772659054841,2.40486704,92.584,92.531,2.40673364]
[1772659055140,2.40486704,92.582,92.524,0.28432314]
[1772659055442,2.40486704,92.58,92.529,2.40673364]
[1772659056546,2.40486704,92.58,92.528,10.80753933]
[1772659057444,2.40486704,92.578,92.522,2.40673364]
[1772659057835,2.40486704,92.574,92.522,2.40673364]
[1772659058143,2.40486704,92.562,92.486,2.40673364]
[1772659058647,2.40486704,92.562,92.508,0.28432314]
[1772659058939,2.40486704,92.562,92.517,2.40673364]
[1772659060735,97.20194183,92.591,92.495,2.40673364]
[1772659060736,2.40486704,92.56,92.495,2.40673364]
[1772659061236,2.40486704,92.56,92.497,2.40673364]
[1772659061423,2.40486704,92.56,92.496,2.40673364]
[1772659063028,2.40486704,92.56,92.483,3.69383402]
[1772659063029,2.40486704,92.558,92.505,0.28432314]
[1772659063233,2.40486704,92.558,92.506,2.40673364]
[1772659067561,2.40486704,92.556,92.508,2.40673364]
[1772659070566,37.81535303,92.555,92.509,10.80975905]
[1772659070733,2.32574945,92.554,92.508,2.40673364]
[1772659072650,2.32574945,92.552,92.508,2.40673364]
[1772659074333,2.32574945,92.552,92.51,2.45094948]
[1772659074750,2.32574945,92.55,92.51,2.45094948]
[1772659076734,2.32574945,92.548,92.51,2.45094948]
[1772659078141,2.32574945,92.542,92.498,0.34153003]
[1772659078762,2.32574945,92.54,92.498,0.34153003]
[1772659081866,43.22034813,92.549,92.498,0.34153003]
[1772659081867,2.32574945,92.538,92.499,2.45094948]
[1772659082369,2.32574945,92.536,92.45,0.1]
[1772659082587,2.32574945,92.522,92.456,2.45094948]
[1772659082865,2.32574945,92.522,92.459,2.45094948]
[1772659083081,2.32574945,92.512,92.459,2.45094948]
[1772659083573,2.32574945,92.488,92.422,5.64030289]
[1772659083740,0.28432314,92.465,92.422,5.64030289]
[1772659083944,2.32574945,92.462,92.41,2.55094948]
[1772659084153,37.84888562,92.473,92.41,2.55094948]
[1772659084154,2.32574945,92.46,92.41,2.55094948]
[1772659084953,2.32574945,92.458,92.41,2.55094948]
[1772659085649,2.32574945,92.455,92.41,2.55094948]
[1772659085844,2.32574945,92.453,92.41,0.1]
[1772659086743,2.61007259,92.45,92.41,0.1]
[1772659086944,2.61007259,92.448,92.41,0.1]
[1772659087553,2.61007259,92.448,92.38,27.16194621]
[1772659087554,2.61007259,92.448,92.38,0.1]
[1772659087741,2.32574945,92.443,92.38,0.1]
[1772659087952,2.32574945,92.441,92.38,0.1]
[1772659088263,2.61007259,92.436,92.362,2.45094948]
[1772659088648,2.61007259,92.436,92.361,0.32635928]
[1772659088963,0.28432314,92.419,92.361,0.32635928]
[1772659089168,2.32574945,92.402,92.361,0.32635928]
[1772659089847,2.32574945,92.402,92.362,13.27791294]
[1772659090048,2.32574945,92.412,92.363,2.45094948]
[1772659090249,32.32574945,92.401,92.363,2.45094948]
[1772659090448,2.32574945,92.4,92.363,2.45094948]
[1772659090866,2.61007259,92.431,92.363,2.45094948]
[1772659091079,2.61007259,92.429,92.365,2.45094948]
[1772659093165,2.32574945,92.422,92.367,2.45094948]
[1772659094153,37.86731292,92.428,92.367,2.45094948]
[1772659094377,2.32574945,92.427,92.367,2.45094948]
[1772659096477,0.28432314,92.436,92.369,2.45094948]
[1772659096775,2.32574945,92.448,92.377,2.73527262]
[1772659096979,2.32574945,92.512,92.382,2.45094948]
[1772659097205,2.32574945,92.512,92.404,2.45094948]
[1772659097478,2.32574945,92.51,92.428,2.73527262]
[1772659098666,2.4000295,92.508,92.433,2.68601876]
[1772659098882,2.4000295,92.506,92.433,2.68601876]
[1772659100477,2.4000295,92.506,92.437,0.28432314]
[1772659100678,2.4000295,92.504,92.45,2.40169562]
[1772659101382,10.81022647,92.505,92.46,2.40169562]
[1772659101587,10.8097372,92.51,92.462,2.40169562]
[1772659103564,2.4000295,92.507,92.461,0.82804532]
[1772659103989,0.28432314,92.506,92.461,0.82804532]
[1772659104298,0.28432314,92.506,92.415,43.28276818]
[1772659104299,0.28432314,92.486,92.413,2.40169562]
[1772659104463,2.4000295,92.475,92.413,2.40169562]
[1772659105288,2.4000295,92.473,92.414,10.82087129]
[1772659105981,37.84847631,92.474,92.413,2.40169562]
[1772659105982,2.29113674,92.465,92.413,2.40169562]
[1772659106367,2.29113674,92.465,92.413,13.22262104]
[1772659106867,2.29113674,92.465,92.4,29.3404064]
[1772659107069,0.28432314,92.448,92.353,2.28412935]
[1772659107274,2.29113674,92.435,92.353,2.28412935]
[1772659107480,2.29113674,92.419,92.355,2.28412935]
[1772659107681,2.29113674,92.415,92.355,2.28412935]
[1772659109274,2.29113674,92.415,92.359,2.28412935]
[1772659109487,2.29113674,92.413,92.361,2.28412935]
[1772659110487,2.29113674,92.405,92.36,10.82719792]
[1772659111179,2.29113674,92.405,92.361,2.28412935]
[1772659111580,13.11307356,92.405,92.363,2.28412935]
[1772659112283,2.29113674,92.404,92.363,2.28412935]
[1772659113186,2.29113674,92.403,92.363,2.28412935]
[1772659114167,2.29113674,92.403,92.365,2.28412935]
[1772659116268,2.29113674,92.403,92.367,2.28412935]
[1772659117478,2.29113674,92.402,92.358,2.28412935]
[1772659117867,2.29113674,92.402,92.345,2.28412935]
[1772659118093,2.29113674,92.396,92.34,2.28412935]
[1772659118489,37.87762481,92.403,92.32,2.28412935]
[1772659118490,2.29113674,92.392,92.32,2.28412935]
[1772659118683,2.29113674,92.376,92.322,11.69383883]
[1772659118995,2.29113674,92.366,92.322,11.69383883]
[1772659119202,2.29113674,92.366,92.322,0.86227551]
[1772659119379,2.57545988,92.364,92.31,0.1]
[1772659119903,2.29113674,92.364,92.312,2.28412935]
[1772659120392,2.29113674,92.364,92.31,0.1]
[1772659120580,2.29113674,92.364,92.311,10.83294515]
[1772659120890,10.82661181,92.365,92.312,2.28412935]
[1772659121072,10.82661181,92.365,92.315,0.28432314]
[1772659121386,10.82601279,92.371,92.32,2.28412935]
[1772659121573,2.29113674,92.371,92.322,2.28412935]
[1772659123192,2.29113674,92.371,92.321,10.83177175]
[1772659123596,2.29113674,92.369,92.322,2.28412935]
[1772659125074,2.29113674,92.385,92.325,2.56845249]
[1772659125475,13.11540474,92.385,92.325,2.56845249]
[1772659125693,2.29113674,92.385,92.325,2.56845249]
[1772659125996,2.29113674,92.405,92.348,2.28412935]
[1772659126181,2.29113674,92.405,92.35,2.28412935]
[1772659128588,2.29113674,92.405,92.329,3.69383402]
[1772659128589,2.24249245,92.421,92.36,2.18555166]
[1772659128789,2.24249245,92.421,92.37,2.18555166]
[1772659130893,2.24249245,92.421,92.372,2.18555166]
[1772659131090,2.24249245,92.421,92.38,2.18555166]
[1772659133696,2.24249245,92.421,92.382,2.18555166]
[1772659134197,2.24249245,92.42,92.382,2.18555166]
[1772659135606,2.24249245,92.42,92.384,2.18555166]
[1772659139306,13.06277832,92.419,92.386,2.18555166]
[1772659139689,2.24249245,92.419,92.386,2.18555166]
[1772659141295,2.24249245,92.419,92.356,47.00441259]
[1772659141296,2.24249245,92.428,92.39,2.18555166]
[1772659141493,10.81735969,92.444,92.39,2.18555166]
[1772659141693,2.24249245,92.443,92.39,2.18555166]
[1772659143012,10.81735969,92.444,92.39,2.18555166]
[1772659143203,2.24249245,92.449,92.4,2.18555166]
[1772659143410,2.24249245,92.447,92.402,2.18555166]
[1772659143811,2.24249245,92.447,92.401,10.82239369]
[1772659144817,2.24249245,92.447,92.401,13.00794535]
[1772659145304,2.24249245,92.447,92.402,2.18555166]
[1772659146407,37.85993985,92.446,92.403,10.82215945]
[1772659146717,2.24249245,92.445,92.403,10.82215945]
[1772659147700,2.24249245,92.443,92.403,10.82215945]
[1772659147901,2.24249245,92.443,92.391,2.18555166]
[1772659148203,2.24249245,92.443,92.392,2.18555166]
[1772659149824,2.24249245,92.441,92.393,10.82333077]
[1772659151726,2.24249245,92.439,92.391,2.18555166]
[1772659152131,2.24249245,92.444,92.399,2.18555166]
[1772659152931,2.24249245,92.457,92.399,2.18555166]
[1772659153314,13.05833116,92.457,92.399,2.18555166]
[1772659153519,2.24249245,92.456,92.399,2.18555166]
[1772659153722,2.24249245,92.454,92.401,2.18555166]
[1772659156629,2.24249245,92.452,92.403,2.18555166]
[1772659157138,2.24249245,92.446,92.387,2.18555166]
[1772659159642,2.64852639,92.444,92.378,2.32476489]
[1772659160937,2.64852639,92.442,92.381,10.82468012]
[1772659161437,2.64852639,92.442,92.381,13.14944501]
[1772659161934,2.36420325,92.435,92.382,2.32476489]
[1772659164743,2.36420325,92.433,92.382,13.14931525]
[1772659165425,2.36420325,92.433,92.382,10.82455036]
[1772659165622,2.36420325,92.433,92.383,2.16884609]
[1772659167062,2.28972105,92.431,92.385,2.16884609]
[1772659169655,2.28972105,92.429,92.387,2.16884609]
[1772659172639,2.28972105,92.427,92.389,2.16884609]
[1772659174751,10.81946638,92.426,92.391,2.16884609]
[1772659175345,2.28972105,92.427,92.391,2.16884609]
[1772659175550,10.81812005,92.438,92.391,2.16884609]
[1772659175946,2.28972105,92.437,92.391,2.16884609]
[1772659176958,2.28972105,92.435,92.393,2.16884609]
[1772659179259,2.28972105,92.433,92.395,2.16884609]
[1772659180152,2.28972105,92.431,92.385,2.16884609]
[1772659180953,2.28972105,92.429,92.385,2.16884609]
[1772659181738,2.28972105,92.427,92.387,2.16884609]
[1772659183054,2.28972105,92.425,92.376,2.7556321]
[1772659183248,2.28972105,92.423,92.376,2.7556321]
[1772659183961,2.28972105,92.421,92.376,13.58092008]
[1772659184853,2.28972105,92.421,92.377,2.16884609]
[1772659187765,2.28972105,92.418,92.379,2.16884609]
[1772659188335,10.81984419,92.423,92.379,2.16884609]
[1772659188645,2.19168153,92.422,92.379,2.16884609]
[1772659191046,2.19168153,92.422,92.378,37.88780878]
[1772659191047,2.19168153,92.422,92.381,2.19783941]
[1772659191959,2.19168153,92.442,92.381,2.19783941]
[1772659193662,2.19168153,92.439,92.383,2.19783941]
[1772659195945,104.9,92.441,92.387,2.19783941]
[1772659196147,107.09168153,92.441,92.389,2.19783941]
[1772659196347,2.19168153,92.441,92.399,2.19783941]
[1772659198588,2.19168153,92.453,92.401,2.19783941]
[1772659198969,2.19168153,92.463,92.409,2.19783941]
[1772659199154,2.19168153,92.478,92.428,0.14216157]
[1772659199474,2.19168153,92.478,92.439,2.19783941]
[1772659199852,2.19168153,92.485,92.439,2.19783941]
[1772659200254,2.19168153,92.485,92.417,0.28432314]
[1772659200454,2.19168153,92.485,92.43,2.19783941]
[1772659200672,2.19168153,92.483,92.431,10.81888111]
[1772659202084,2.19168153,92.483,92.432,2.19783941]
[1772659203563,2.19168153,92.475,92.415,2.19783941]
[1772659204074,2.19168153,92.475,92.41,10.82133968]
[1772659204280,2.19168153,92.475,92.411,2.19783941]
[1772659205783,2.19168153,92.473,92.413,2.19783941]
[1772659206683,2.19168153,92.473,92.419,2.19783941]
[1772659208184,2.19168153,92.471,92.421,2.19783941]
[1772659211784,2.19168153,92.469,92.423,2.19783941]
[1772659213867,2.19168153,92.467,92.425,2.19783941]
[1772659214799,2.19168153,92.467,92.424,10.81970051]
[1772659215397,2.19168153,92.467,92.419,10.8202255]
[1772659216386,54.06434405,92.483,92.385,3.69383402]
[1772659216387,2.19168153,92.465,92.416,2.19783941]
[1772659218477,2.31486689,92.463,92.418,2.09055016]
[1772659219879,2.31486689,92.463,92.408,2.09055016]
[1772659221388,54.07100357,92.472,92.409,10.82145678]
[1772659221389,2.31486689,92.461,92.409,10.82145678]
[1772659221590,38.13771155,92.462,92.409,10.82145678]
[1772659221591,2.31486689,92.455,92.409,10.82145678]
[1772659221793,37.85338841,92.462,92.378,2.09055016]
[1772659221794,2.31486689,92.453,92.378,2.09055016]
[1772659222091,2.31486689,92.435,92.378,2.09055016]
[1772659224675,2.31486689,92.435,92.361,3.69383402]
[1772659224676,2.31486689,92.433,92.38,2.09055016]
[1772659226790,2.22556683,92.431,92.382,2.30593191]
[1772659229594,2.22556683,92.429,92.384,2.30593191]
[1772659229893,2.22556683,92.428,92.384,2.30593191]
[1772659230088,104.9,92.429,92.384,2.30593191]
[1772659230308,2.22556683,92.428,92.384,2.30593191]
[1772659232099,2.22556683,92.426,92.386,2.30593191]
[1772659233417,2.22556683,92.452,92.39,2.30593191]
[1772659234078,2.22556683,92.452,92.385,37.88493802]
[1772659234079,2.22556683,92.446,92.392,2.30593191]
[1772659234603,2.22556683,92.436,92.382,10.82461951]
[1772659234903,2.22556683,92.436,92.382,13.13055142]
[1772659235280,2.22556683,92.436,92.383,2.30593191]
[1772659235476,2.22556683,92.436,92.382,10.82461951]
[1772659235803,2.22556683,92.436,92.056,96.25021188]
[1772659235804,2.22556683,92.436,92.377,2.30593191]
[1772659236181,2.22556683,92.434,92.379,2.30593191]
[1772659237881,2.22556683,92.432,92.381,2.30593191]
[1772659239995,2.22556683,92.43,92.382,10.82461951]
[1772659240196,2.22556683,92.43,92.382,13.13055142]
[1772659240394,2.22556683,92.43,92.383,2.30593191]
[1772659241704,2.22556683,92.429,92.383,2.30593191]
[1772659242585,2.22556683,92.427,92.384,13.13031708]
[1772659242780,2.22556683,92.427,92.384,10.82438517]
[1772659242986,2.22556683,92.427,92.385,2.30593191]
[1772659244706,2.22556683,92.425,92.387,2.30593191]
[1772659250210,2.09708491,92.423,92.389,2.23076943]
[1772659252216,2.09708491,92.423,92.375,2.23076943]
[1772659252415,2.09708491,92.421,92.377,2.23076943]
[1772659255102,2.09708491,92.419,92.379,2.23076943]
[1772659256009,2.09708491,92.419,92.38,10.82485386]
[1772659256198,54.08250499,92.452,92.389,2.23076943]
[1772659256199,2.09708491,92.429,92.389,2.23076943]
[1772659256605,10.81923226,92.428,92.389,2.23076943]
[1772659257322,12.91631717,92.428,92.389,2.23076943]
[1772659257702,2.09708491,92.427,92.389,2.23076943]
[1772659259001,10.81923226,92.428,92.391,2.23076943]
[1772659260630,12.91573193,92.433,92.391,2.23076943]
[1772659261121,2.09708491,92.46,92.399,2.23076943]
[1772659261513,2.09708491,92.46,92.404,0.28432314]
[1772659261715,2.09708491,92.46,92.409,2.23076943]
[1772659262027,2.09708491,92.46,92.419,2.23076943]
[1772659265715,2.09708491,92.46,92.421,2.23076943]
[1772659265918,2.09708491,92.458,92.421,2.23076943]
[1772659266218,10.81560475,92.459,92.421,2.23076943]
[1772659266940,10.81516871,92.463,92.421,2.23076943]
[1772659269143,2.09708491,92.487,92.429,2.23076943]
[1772659271842,2.09708491,92.485,92.434,2.51509257]
[1772659272031,2.09708491,92.499,92.439,2.23076943]
[1772659272234,2.09708491,92.499,92.456,0.28432314]
[1772659272439,2.09708491,92.499,92.459,2.23076943]
[1772659273953,2.09708491,92.499,92.45,0.28432314]
[1772659273954,2.09708491,92.499,92.461,2.23076943]
[1772659274155,2.09708491,92.497,92.461,2.23076943]
[1772659276027,2.09708491,92.497,92.463,2.23076943]
[1772659277144,0.38081855,92.506,92.469,2.23076943]
[1772659277728,0.38081855,92.506,92.471,2.23076943]
[1772659277934,0.2,92.53,92.492,2.23076943]
[1772659278132,0.2,92.53,92.5,2.23076943]
[1772659278850,0.2,92.56,92.504,2.24432078]
[1772659279157,0.2,92.56,92.52,2.24432078]
[1772659279946,0.2,92.56,92.521,37.82924957]
[1772659280150,0.2,92.56,92.522,2.24432078]
[1772659280340,1e-08,92.55,92.522,2.24432078]
[1772659282034,1e-08,92.55,92.525,2.24432078]
[1772659282235,1e-08,92.55,92.489,48.07286068]
[1772659282236,2.2210535,92.549,92.51,2.24432078]
[1772659284655,2.2210535,92.547,92.512,2.24432078]
[1772659285452,2.2210535,92.547,92.513,0.30757421]
[1772659285631,2.2210535,92.547,92.514,2.48203723]
[1772659285831,2.2210535,92.547,92.516,2.17929986]
[1772659286359,2.09188117,92.545,92.502,2.17929986]
[1772659286555,2.09188117,92.545,92.504,2.17929986]
[1772659286862,2.09188117,92.543,92.506,12.98940947]
[1772659287039,2.09188117,92.543,92.507,0.16915407]
[1772659287657,2.09188117,92.543,92.506,12.98940947]
[1772659288063,2.09188117,92.543,92.506,2.17929986]
[1772659289056,2.09188117,92.541,92.504,10.81023652]
[1772659289854,2.09188117,92.549,92.509,2.17929986]
[1772659290161,1e-08,92.55,92.509,2.17929986]
[1772659290367,2.09188117,92.548,92.505,0.28432314]
[1772659290544,2.09188117,92.548,92.504,10.81023652]
[1772659290938,2.09188117,92.546,92.501,2.17929986]
[1772659293057,2.09188117,92.544,92.503,2.17929986]
[1772659293260,1e-08,92.55,92.503,2.17929986]
[1772659293439,2.09188117,92.577,92.512,2.17929986]
[1772659293649,2.09188117,92.585,92.533,0.28432314]
[1772659293856,2.09188117,92.595,92.545,2.17929986]
[1772659294158,2.09188117,92.595,92.549,2.17929986]
[1772659294559,2.09188117,92.595,92.541,2.17929986]
[1772659294862,2.09188117,92.585,92.519,2.17929986]
[1772659295050,2.09188117,92.585,92.518,0.28432314]
[1772659295051,2.09188117,92.583,92.52,12.9877737]
[1772659295250,2.09188117,92.583,92.521,2.17929986]
[1772659297168,2.09188117,92.581,92.523,2.17929986]
[1772659299550,2.09188117,92.579,92.525,2.17929986]
[1772659300269,2.09188117,92.579,92.527,2.17929986]
[1772659300485,2.09188117,92.579,92.529,2.17929986]
[1772659303076,2.09188117,92.577,92.531,2.17929986]
[1772659305171,2.09188117,92.577,92.532,37.82475251]
[1772659305382,2.09188117,92.577,92.533,2.17929986]
[1772659306371,2.09188117,92.575,92.513,2.17929986]
[1772659307062,2.09188117,92.575,92.519,2.17929986]
[1772659307265,2.09188117,92.581,92.524,2.463623]
[1772659307566,10.80068513,92.587,92.524,2.463623]
[1772659308093,2.09188117,92.586,92.524,2.463623]
[1772659309395,2.09188117,92.586,92.529,2.4610403]
[1772659309563,10.80088567,92.585,92.529,2.4610403]
[1772659309768,2.14846263,92.584,92.529,2.4610403]
[1772659311468,2.14846263,92.584,92.534,2.4610403]
[1772659311883,2.14846263,92.596,92.534,2.4610403]
[1772659312785,2.14846263,92.594,92.538,3.69383402]
[1772659312991,2.14846263,92.594,92.539,2.4610403]
[1772659313784,10.7997192,92.595,92.539,2.4610403]
[1772659314090,2.14846263,92.607,92.539,2.4610403]
[1772659314383,2.14846263,92.605,92.539,2.4610403]
[1772659314987,2.14846263,92.603,92.541,2.17671716]
[1772659316787,2.14846263,92.595,92.54,10.80613788]
[1772659317085,2.14846263,92.585,92.52,2.17671716]
[1772659319273,142.69942544,92.594,92.522,2.17671716]
[1772659319274,2.14846263,92.583,92.522,2.17671716]
[1772659320683,2.14846263,92.575,92.499,2.17671716]
[1772659320991,2.14846263,92.575,92.505,2.17671716]
[1772659321291,2.14846263,92.573,92.522,2.17671716]
[1772659323780,2.14846263,92.571,92.524,2.17671716]
[1772659326206,2.14846263,92.569,92.525,12.98460691]
[1772659326506,2.14846263,92.569,92.526,2.17671716]
[1772659327581,2.14846263,92.569,92.525,10.80788975]
[1772659327899,2.14846263,92.566,92.506,2.17671716]
[1772659328101,2.43278577,92.565,92.489,2.17671716]
[1772659328307,2.43278577,92.56,92.494,2.17671716]
[1772659328599,2.43278577,92.56,92.499,0.28432314]
[1772659328600,2.14846263,92.56,92.499,0.28432314]
[1772659328795,2.14846263,92.56,92.518,2.17671716]
[1772659328990,2.14846263,92.56,92.492,10.811647]
[1772659328991,2.14846263,92.56,92.52,2.17671716]
[1772659329379,11.08240971,92.609,92.524,2.17671716]
[1772659329600,10.79808657,92.609,92.53,2.17671716]
[1772659329803,37.79330301,92.609,92.53,2.17671716]
[1772659330101,0.28432314,92.608,92.53,2.17671716]
[1772659330409,0.28432314,92.606,92.54,2.17671716]
[1772659330585,37.79411923,92.607,92.54,2.17671716]
[1772659330786,37.79411923,92.607,92.545,0.28432314]
[1772659331004,37.79411923,92.607,92.55,2.17671716]
[1772659331512,10.79831978,92.607,92.56,2.17671716]
[1772659332682,2.14846263,92.606,92.562,2.17671716]
[1772659332990,2.14846263,92.606,92.549,10.80498934]
[1772659333890,2.43278577,92.602,92.544,12.98238797]
[1772659334090,2.43278577,92.602,92.545,2.17671716]
[1772659335695,2.43278577,92.599,92.527,2.17671716]
[1772659335902,2.43278577,92.59,92.527,12.9843733]
[1772659337196,2.43278577,92.588,92.527,12.9843733]
[1772659337605,2.43278577,92.588,92.528,2.17671716]
[1772659338509,2.43278577,92.588,92.518,2.02168066]
[1772659338803,2.0274292,92.565,92.499,2.02168066]
[1772659339192,2.0274292,92.565,92.517,2.02168066]
[1772659339397,2.0274292,92.565,92.519,2.02168066]
[1772659340405,185.90489267,92.587,92.519,2.02168066]
[1772659340406,2.31175234,92.586,92.519,2.02168066]
[1772659340596,2.0274292,92.584,92.521,2.02168066]
[1772659342388,2.0274292,92.584,92.529,2.02168066]
[1772659342586,2.0274292,92.596,92.531,2.3060038]
[1772659343809,10.7997192,92.595,92.533,2.3060038]
[1772659344208,2.0274292,92.594,92.533,2.3060038]
[1772659344709,2.0274292,92.594,92.533,2.02168066]
[1772659347911,2.11205572,92.592,92.534,10.80683856]
[1772659348101,37.79983368,92.593,92.524,2.21169726]
[1772659348102,2.11205572,92.586,92.524,2.21169726]
[1772659349810,2.11205572,92.584,92.524,2.21169726]
[1772659350014,2.11205572,92.582,92.526,2.21169726]
[1772659352819,2.11205572,92.579,92.528,2.21169726]
[1772659353127,2.11205572,92.571,92.511,2.21169726]
[1772659353302,2.11205572,92.555,92.498,2.21169726]
[1772659354496,2.11205572,92.553,92.5,2.21169726]
[1772659355906,2.11205572,92.545,92.5,2.21169726]
[1772659358016,2.11205572,92.543,92.5,2.21169726]
[1772659358323,2.11205572,92.543,92.502,2.21169726]
[1772659358514,2.11205572,92.55,92.502,2.21169726]
[1772659358718,2.11205572,92.565,92.502,2.21169726]
[1772659360016,2.11205572,92.564,92.504,2.21169726]
[1772659361809,2.11205572,92.562,92.506,2.21169726]
[1772659365024,2.11205572,92.559,92.508,2.21169726]
[1772659367831,2.11205572,92.557,92.51,2.21169726]
[1772659368025,2.11205572,92.555,92.494,10.81150426]
[1772659368228,2.11205572,92.555,92.495,2.21169726]
[1772659368434,37.81412734,92.558,92.499,2.21169726]
[1772659370138,1.99255203,92.557,92.501,2.34424291]
[1772659372121,10.80403638,92.558,92.503,2.34424291]
[1772659375138,1.99255203,92.557,92.509,0.28432314]
[1772659375331,1.99255203,92.557,92.51,2.05991977]
[1772659375927,10.80403638,92.558,92.51,2.05991977]
[1772659376345,1.99255203,92.557,92.51,2.05991977]
[1772659376542,10.80343686,92.564,92.518,2.05991977]
[1772659376845,10.80343686,92.564,92.52,2.05991977]
[1772659377442,10.80343686,92.564,92.504,91.88791835]
[1772659377443,10.80263584,92.57,92.522,2.05991977]
[1772659378544,10.80263584,92.57,92.523,0.28432314]
[1772659378726,10.80263584,92.57,92.53,2.05991977]
[1772659379745,1.99255203,92.569,92.53,2.05991977]
[1772659382047,1.99255203,92.567,92.532,2.05991977]
[1772659383846,1.99255203,92.565,92.534,2.05991977]
[1772659384349,1.99255203,92.565,92.498,2.05991977]
[1772659384555,1.99255203,92.565,92.5,2.05991977]
[1772659384747,1.99255203,92.555,92.5,2.05991977]
[1772659386845,1.99255203,92.553,92.501,2.05991977]
[1772659387046,37.8157616,92.554,92.494,2.05991977]
[1772659387047,0.28432314,92.548,92.494,2.05991977]
[1772659387351,0.28432314,92.552,92.494,2.05991977]
[1772659387352,1.99255203,92.545,92.494,2.05991977]
[1772659387647,1.99255203,92.545,92.495,2.05991977]
[1772659390152,1.99255203,92.543,92.497,2.05991977]
[1772659394740,10.80590434,92.542,92.499,2.05991977]
[1772659394962,39.81321723,92.542,92.499,2.05991977]
[1772659395157,1.99255203,92.541,92.499,2.05991977]
[1772659397842,1.99255203,92.539,92.501,2.05991977]
[1772659400764,54.02201655,92.555,92.495,2.04942362]
[1772659400765,2.09915015,92.537,92.495,2.04942362]
[1772659402246,2.09915015,92.535,92.481,2.04942362]
[1772659402450,2.09915015,92.535,92.486,2.04942362]
[1772659403971,2.09915015,92.529,92.478,2.04942362]
[1772659404155,2.09915015,92.525,92.478,2.04942362]
[1772659405478,2.09915015,92.523,92.48,2.04942362]
[1772659405860,0.28432314,92.532,92.458,1.96808455]
[1772659405861,1.94930682,92.521,92.458,1.96808455]
[1772659406769,1.94930682,92.515,92.458,1.96808455]
[1772659406962,1.94930682,92.513,92.451,1.96808455]
[1772659409680,2.23362996,92.511,92.453,1.96808455]
[1772659411275,2.23362996,92.511,92.447,27.04247069]
[1772659411276,2.23362996,92.509,92.455,1.96808455]
[1772659412166,1.94930682,92.509,92.455,1.96808455]
[1772659412483,1.94930682,92.503,92.455,1.96808455]
[1772659412872,104.9,92.502,92.455,1.96808455]
[1772659413072,1.94930682,92.501,92.455,1.96808455]
[1772659413767,1.94930682,92.508,92.457,1.96808455]
[1772659413979,104.9,92.509,92.457,1.96808455]
[1772659414176,10.81032441,92.505,92.457,1.96808455]
[1772659415273,10.81032441,92.505,92.459,1.96808455]
[1772659416782,10.81032441,92.505,92.461,1.96808455]
[1772659417986,1.94930682,92.504,92.461,1.96808455]
[1772659418162,1.94930682,92.502,92.453,1.96808455]
[1772659418871,1.94930682,92.5,92.453,1.96808455]
[1772659419687,1.94930682,92.5,92.432,1.96808455]
[1772659419881,1.94930682,92.5,92.435,1.96808455]
[1772659420085,1.94930682,92.5,92.437,1.96808455]
[1772659420595,1.94930682,92.5,92.448,1.96808455]
[1772659420995,1.94930682,92.498,92.45,1.96808455]
[1772659424306,1.94930682,92.496,92.452,1.96808455]
[1772659424873,10.81116144,92.497,92.452,1.96808455]
[1772659426679,1.94930682,92.496,92.454,1.96808455]
[1772659430611,1.9782737,92.494,92.456,1.95825252]
[1772659431322,54.04487503,92.516,92.456,1.95825252]
[1772659431323,1.9782737,92.516,92.456,1.95825252]
[1772659431798,1.9782737,92.516,92.455,10.81607268]
[1772659431799,1.9782737,92.554,92.467,1.95825252]
[1772659432012,1.9782737,92.554,92.477,1.95825252]
[1772659432300,1.9782737,92.551,92.477,1.95825252]
[1772659432598,1.9782737,92.541,92.479,1.95825252]
[1772659435403,1.9782737,92.539,92.481,1.95825252]
[1772659437002,1.9782737,92.538,92.481,1.95825252]
[1772659438017,104.9,92.539,92.478,27.0334566]
[1772659438018,1.9782737,92.536,92.483,1.95825252]
[1772659440596,10.80672178,92.535,92.485,1.95825252]
[1772659440914,1.9782737,92.534,92.485,1.95825252]
[1772659441107,115.70631631,92.539,92.487,1.95825252]
[1772659441802,10.80631631,92.539,92.487,1.95825252]
[1772659442198,1.9782737,92.538,92.487,1.95825252]
[1772659442898,1.9782737,92.536,92.489,1.95825252]
[1772659446019,1.9782737,92.534,92.491,1.95825252]
[1772659448905,1.9782737,92.532,92.491,1.95825252]
[1772659449419,1.9782737,92.532,92.493,1.95825252]
[1772659451943,3.69383402,92.553,92.493,1.95825252]